bitfinex/quotes_ETHUSD_20250722
["timestamp","ask_amount","ask_price","bid_price","bid_amount"]
[1753169551482,5.8345485,3703.5,3703.4,0.25215643]
[1753169552543,6.6020485,3703.5,3703.4,0.25215643]
[1753169553082,3.1344,3703.5,3703.4,0.25215643]
[1753169553241,3.1344,3703.5,3703.4,0.71755643]
[1753169553664,3.0,3703.5,3703.4,0.71755643]
[1753169554049,3.0,3703.9,3703.4,1.28643207]
[1753169554247,8.7213512,3704.4,3703.4,1.28643207]
[1753169554248,0.8239,3704.8,3703.6,3.4540756]
[1753169554469,0.1344,3704.3,3703.7,7.10115595]
[1753169554678,0.1344,3704.3,3703.9,0.754]
[1753169554848,0.1344,3704.3,3704.0,0.25115643]
[1753169555042,2.69949921,3704.4,3703.9,0.754]
[1753169555043,0.002,3704.5,3704.1,0.71655643]
[1753169555277,2.70148335,3704.5,3704.2,0.25115643]
[1753169555482,0.002,3704.5,3704.3,0.71655643]
[1753169555778,0.002,3704.5,3704.4,0.85095643]
[1753169556284,5.70141962,3704.5,3704.4,0.25115643]
[1753169556467,6.17011962,3704.5,3704.4,0.25115643]
[1753169556898,10.32011962,3704.5,3704.4,0.25115643]
[1753169557099,10.87011962,3704.5,3704.4,0.25115643]
[1753169557405,5.7001485,3703.5,3703.4,0.001]
[1753169558800,5.8345485,3703.5,3703.4,0.001]
[1753169559005,0.1344,3703.5,3703.4,0.001]
[1753169559212,0.1344,3703.5,3703.4,0.4664]
[1753169559570,2.6999031,3703.9,3703.4,0.4664]
[1753169559571,2.8343031,3703.9,3703.4,0.4664]
[1753169560108,2.69996327,3703.8,3703.4,0.001]
[1753169560411,2.69996327,3703.8,3703.5,0.4654]
[1753169560586,0.1344,3703.9,3703.6,0.4654]
[1753169560915,2.83430781,3703.9,3703.7,0.4654]
[1753169561573,2.83427814,3703.9,3703.7,0.4654]
[1753169561773,2.6999298,3703.8,3703.7,0.4654]
[1753169562204,3.1344,3703.9,3703.4,0.4664]
[1753169562513,3.1344,3703.9,3703.5,0.4654]
[1753169562799,3.1344,3703.9,3703.6,0.4654]
[1753169563018,2.6999298,3703.8,3703.6,0.4654]
[1753169563808,2.7000027,3703.7,3703.6,0.4654]
[1753169564015,0.1344,3703.9,3703.6,0.4654]
[1753169564424,2.83430814,3703.9,3703.6,0.4654]
[1753169564620,0.1344,3703.9,3703.4,0.001]
[1753169564808,2.7001485,3703.5,3703.4,0.001]
[1753169565017,2.70009381,3703.6,3703.4,0.001]
[1753169565307,2.7001485,3703.5,3703.4,0.001]
[1753169567444,5.7001485,3703.5,3703.4,0.001]
[1753169569330,5.7001485,3703.5,3703.4,0.25236944]
[1753169570050,3.0,3703.5,3703.4,0.25236944]
[1753169570349,3.0,3703.5,3703.4,1.48916944]
[1753169570498,0.1344,3703.6,3703.4,1.48916944]
[1753169570831,3.0,3704.0,3703.5,4.85956944]
[1753169571139,0.7715,3704.5,3703.8,3.52612152]
[1753169571140,2.70143714,3704.5,3703.8,3.52612152]
[1753169571334,0.002,3704.5,3703.9,0.737568]
[1753169571539,0.002,3704.5,3704.0,4.85956944]
[1753169571734,0.002,3704.5,3704.1,0.25136944]
[1753169572043,0.002,3704.5,3704.2,0.25136944]
[1753169572204,2.70142804,3704.5,3704.3,0.25136944]
[1753169572399,0.002,3704.5,3704.4,0.25136944]
[1753169573997,2.70141962,3704.5,3704.4,0.25136944]
[1753169574231,0.002,3704.5,3704.4,0.25136944]
[1753169575017,0.002,3704.5,3704.4,0.25114183]
[1753169575847,0.002,3704.5,3704.4,1.47304183]
[1753169576346,0.002,3704.5,3704.4,1.62304558]
[1753169576512,0.002,3704.5,3704.4,4.32253807]
[1753169576845,0.002,3704.5,3704.4,4.34953299]
[1753169578346,0.002,3704.7,3704.6,4.03014675]
[1753169578545,0.002,3705.3,3705.2,2.69890964]
[1753169578744,0.002,3705.3,3705.2,10.87885147]
[1753169579043,0.002,3705.3,3705.2,11.88805147]
[1753169580269,0.002,3705.3,3705.2,1.49114183]
[1753169580435,0.002,3705.3,3705.2,5.63814183]
[1753169580637,0.002,3705.3,3705.2,8.90086565]
[1753169580864,0.002,3705.3,3705.2,9.45086565]
[1753169581068,0.002,3705.3,3705.2,9.58526565]
[1753169582264,0.002,3705.8,3705.7,2.69854548]
[1753169582465,0.002,3705.8,3705.7,8.58049567]
[1753169582682,0.002,3705.8,3705.7,9.01271022]
[1753169583115,0.002,3705.8,3705.7,2.16716474]
[1753169583251,0.002,3705.8,3705.7,0.25114183]
[1753169583444,2.70047266,3705.8,3705.7,0.25114183]
[1753169583710,0.002,3705.8,3705.7,0.25114183]
[1753169583996,0.002,3705.8,3705.7,1.50682728]
[1753169584653,0.002,3705.8,3705.7,1.47984183]
[1753169584979,0.002,3705.8,3705.7,1.50682728]
[1753169585170,0.002,3705.8,3705.7,1.47984183]
[1753169585341,2.70047266,3705.8,3705.7,0.25114183]
[1753169585542,11.42062386,3705.8,3705.7,0.25114183]
[1753169585742,3.91837266,3705.8,3705.7,0.25114183]
[1753169585949,3.46677266,3705.8,3705.7,0.25114183]
[1753169586982,11.87222386,3705.8,3705.7,0.25114183]
[1753169587383,14.87222386,3705.8,3705.7,0.25114183]
[1753169588083,29.37222386,3705.8,3705.7,0.25114183]
[1753169588397,20.20047266,3705.8,3705.7,0.25114183]
[1753169588765,14.502,3705.8,3705.7,0.25114183]
[1753169589691,0.002,3705.8,3705.7,0.25114183]
[1753169590214,2.70047266,3705.8,3705.7,0.25114183]
[1753169590516,0.002,3705.8,3705.7,0.25114183]
[1753169590815,0.002,3705.8,3705.7,0.71034183]
[1753169591189,0.002,3705.8,3705.7,0.25114183]
[1753169591789,2.70047266,3705.8,3705.7,0.25114183]
[1753169592207,3.15207266,3705.8,3705.7,4.39714183]
[1753169592620,3.15207266,3705.8,3704.7,0.8072]
[1753169592621,2.6985867,3705.7,3704.7,0.8072]
[1753169592805,2.6988579,3705.3,3704.8,4.146]
[1753169593322,2.6989437,3705.2,3704.9,4.146]
[1753169593505,2.69886027,3705.3,3704.9,4.146]
[1753169593708,2.69895533,3705.2,3704.9,4.146]
[1753169594087,0.1344,3705.5,3704.8,0.1344]
[1753169594291,2.69912818,3704.9,3704.8,0.1344]
[1753169594824,2.69940667,3704.6,3704.5,4.146]
[1753169595020,2.69934675,3704.6,3704.5,4.146]
[1753169595220,2.69927389,3704.7,3704.5,4.146]
[1753169595547,2.6995475,3704.4,3704.2,0.1344]
[1753169595846,2.69943456,3704.5,3704.3,4.146]
[1753169596048,0.33384774,3704.8,3704.3,4.146]
[1753169596214,0.33384774,3704.8,3704.0,0.001]
[1753169596215,2.69956536,3704.3,3704.0,0.001]
[1753169596547,14.5,3704.9,3704.1,4.146]
[1753169596548,0.1344,3704.6,3704.1,4.146]
[1753169596730,2.69943291,3704.5,3704.1,4.146]
[1753169596935,2.69943291,3704.5,3704.2,0.4592]
[1753169597338,2.69949615,3704.4,3704.2,0.4592]
[1753169597534,2.69939623,3704.6,3704.3,0.4607]
[1753169597737,0.1344,3704.8,3704.2,0.1344]
[1753169597933,2.69956536,3704.3,3704.1,4.146]
[1753169598149,2.69951425,3704.4,3704.1,4.146]
[1753169598718,0.1344,3704.6,3704.2,4.146]
[1753169599114,2.69941962,3704.5,3704.2,4.146]
[1753169600051,2.69949454,3704.4,3704.2,4.146]
[1753169600250,0.1344,3704.6,3704.2,4.146]
[1753169600454,0.1344,3704.6,3704.0,0.1354]
[1753169600688,0.1344,3704.6,3704.0,4.2824]
[1753169600966,2.69942772,3704.5,3704.0,4.2824]
[1753169601361,2.69950591,3704.4,3704.0,4.7431]
[1753169601858,2.69956548,3704.3,3704.1,4.147]
[1753169602270,2.83376168,3704.6,3704.1,4.147]
[1753169602567,2.69958445,3704.3,3704.1,4.147]
[1753169602862,2.69941962,3704.5,3704.1,4.147]
[1753169602863,0.8241,3704.5,3704.1,4.147]
[1753169603045,0.1344,3704.6,3704.2,0.48769638]
[1753169603251,0.20737951,3704.9,3704.3,4.06231309]
[1753169603454,0.8117,3705.5,3704.4,0.48769492]
[1753169603787,0.20223831,3705.5,3704.5,4.147]
[1753169603963,0.1364,3705.8,3705.2,0.1344]
[1753169604116,0.002,3705.8,3705.5,2.69869113]
[1753169604321,0.002,3705.8,3705.7,2.83294548]
[1753169604561,0.002,3705.8,3705.7,4.2814]
[1753169604766,0.002,3705.8,3705.7,8.16455782]
[1753169604971,0.002,3705.8,3705.7,0.85831234]
[1753169605119,0.002,3705.8,3705.7,4.39670234]
[1753169605326,2.70047266,3705.8,3705.7,0.24970234]
[1753169605625,0.002,3705.8,3705.7,4.39670234]
[1753169606053,2.70047266,3705.8,3705.7,4.39670234]
[1753169606256,2.70047266,3705.8,3705.7,0.24970234]
[1753169606432,3.15557266,3705.8,3705.7,0.24970234]
[1753169606821,2.69869113,3705.5,3705.4,4.146]
[1753169607056,0.002,3705.8,3705.4,4.39597851]
[1753169607225,0.002,3705.8,3705.5,0.38437851]
[1753169607422,0.002,3705.8,3705.6,0.24997851]
[1753169607673,0.002,3705.8,3705.7,0.24997851]
[1753169609760,10.65432386,3705.8,3705.7,0.24997851]
[1753169610062,12.04452386,3705.8,3705.7,0.24997851]
[1753169610237,11.58942386,3705.8,3705.7,0.24997851]
[1753169610442,12.04452386,3705.8,3705.7,0.24997851]
[1753169611047,18.13557266,3705.8,3705.7,0.24997851]
[1753169611284,2.83487266,3705.8,3705.7,0.24997851]
[1753169612059,0.002,3705.8,3705.7,0.71067851]
[1753169612828,0.002,3705.8,3705.7,1.56541288]
[1753169613280,0.002,3705.8,3705.7,4.42534381]
[1753169614382,0.002,3705.8,3705.7,5.19014381]
[1753169615546,0.002,3705.8,3705.7,9.35100369]
[1753169615788,0.002,3705.8,3705.7,9.32401824]
[1753169619889,0.002,3705.8,3705.7,6.62547276]
[1753169620091,0.002,3705.8,3705.7,9.32401824]
[1753169620594,0.002,3706.0,3705.9,2.69839984]
[1753169620887,0.002,3706.0,3705.9,8.35146403]
[1753169621089,0.002,3706.0,3705.9,6.2211802]
[1753169621389,0.002,3706.0,3705.9,6.24816419]
[1753169621710,0.002,3706.0,3705.9,5.04592238]
[1753169621868,0.002,3706.0,3705.9,4.55823839]
[1753169622210,0.002,3706.0,3705.9,4.3084]
[1753169622369,0.002,3706.0,3705.9,4.55798888]
[1753169622557,0.002,3706.0,3705.9,4.55698888]
[1753169624261,0.002,3706.0,3705.9,4.3074]
[1753169624469,0.002,3706.0,3705.9,5.37592544]
[1753169624673,0.002,3706.0,3705.9,5.40290943]
[1753169624890,0.002,3706.0,3705.9,4.58408754]
[1753169625192,0.002,3706.0,3705.9,4.55710355]
[1753169625486,2.70032703,3706.0,3705.9,4.55710355]
[1753169625658,0.002,3706.0,3705.9,4.42270355]
[1753169627277,3.50142703,3706.0,3705.9,1e-08]
[1753169627592,0.8011,3705.6,3702.8,0.001]
[1753169627794,0.8011,3705.3,3704.2,0.8297]
[1753169627956,14.5,3705.2,3704.3,1.02979565]
[1753169628305,14.5,3705.2,3704.4,4.6243]
[1753169628457,2.69898003,3705.2,3704.5,4.19399419]
[1753169628659,0.46748635,3705.1,3704.6,4.167]
[1753169628905,2.69927389,3704.7,3704.6,4.167]
[1753169629270,12.07196414,3704.7,3704.6,4.167]
[1753169629588,12.04497779,3704.7,3704.6,4.167]
[1753169629763,2.69956536,3704.3,3704.2,0.001]
[1753169630164,2.69956536,3704.3,3704.2,4.173]
[1753169632861,0.2005527,3704.7,3704.2,7.3299337]
[1753169633062,0.002,3706.0,3704.4,3.45218393]
[1753169633063,0.7866,3705.4,3704.4,3.45218393]
[1753169633302,0.7866,3705.4,3704.5,0.48429419]
[1753169633489,2.56755634,3705.2,3704.6,4.169]
[1753169633687,3.4853714,3705.4,3704.7,0.02699273]
[1753169633688,0.7866,3705.4,3704.7,0.02699273]
[1753169633893,2.69891122,3705.2,3704.7,0.48429273]
[1753169634094,2.6989991,3705.1,3704.7,0.4573]
[1753169634471,2.6989991,3705.1,3704.6,4.169]
[1753169634472,2.69927389,3704.7,3704.6,4.169]
[1753169636781,2.90492355,3704.7,3704.6,4.169]
[1753169637676,0.20564966,3704.7,3704.6,4.169]
[1753169637909,2.69927389,3704.7,3704.6,4.169]
[1753169638906,17.33352918,3704.9,3704.6,4.17]
[1753169639087,2.69920839,3704.8,3704.6,4.17]
[1753169639474,2.69920839,3704.8,3704.7,0.25015854]
[1753169640972,0.1344,3704.9,3704.7,0.25015854]
[1753169641287,2.83352818,3704.9,3704.8,0.25015854]
[1753169643277,4.11601453,3704.9,3704.8,0.25015854]
[1753169643625,2.69927389,3704.7,3704.6,0.001]
[1753169643825,2.72626024,3704.7,3704.6,0.001]
[1753169644032,6.98176024,3704.7,3704.6,0.001]
[1753169644338,6.95477389,3704.7,3704.6,0.001]
[1753169644693,0.8213,3705.3,3704.6,0.001]
[1753169644898,0.8213,3705.3,3704.6,4.164]
[1753169644899,0.1344,3705.1,3704.6,4.164]
[1753169645222,2.83338941,3705.1,3704.6,4.164]
[1753169645425,2.83338941,3705.1,3704.7,0.4573]
[1753169645794,0.1344,3705.1,3704.7,0.4573]
[1753169645997,2.69911224,3705.0,3704.7,0.4573]
[1753169646330,0.1344,3705.1,3704.6,4.164]
[1753169646499,2.69912818,3704.9,3704.6,4.164]
[1753169647206,0.02698635,3705.0,3704.6,4.164]
[1753169647417,2.69927389,3704.7,3704.6,4.164]
[1753169648098,3.54306024,3704.7,3704.6,4.164]
[1753169648291,3.98356024,3704.7,3704.6,4.164]
[1753169648704,3.95657389,3704.7,3704.6,4.164]
[1753169649291,4.18976576,3704.7,3704.6,4.164]
[1753169649595,7.18976576,3704.7,3704.6,4.164]
[1753169649909,20.40547941,3704.7,3704.6,0.001]
[1753169650113,5.90547941,3704.7,3704.6,0.001]
[1753169650595,0.20620552,3704.7,3704.6,0.001]
[1753169650793,2.69927389,3704.7,3704.6,0.001]
[1753169650995,2.89989425,3704.7,3704.6,0.001]
[1753169651201,3.3673806,3704.7,3704.6,0.001]
[1753169651516,7.1731806,3704.7,3704.6,0.001]
[1753169651717,7.14619425,3704.7,3704.6,0.001]
[1753169655715,7.14619425,3704.7,3704.6,0.25155866]
[1753169657812,6.94557389,3704.7,3704.6,0.25155866]
[1753169658517,11.11557389,3704.7,3704.6,0.25155866]
[1753169659058,25.61557389,3704.7,3704.6,0.25155866]
[1753169659250,5.69956536,3704.3,3704.2,0.001]
[1753169659416,13.65341656,3704.3,3704.2,0.001]
[1753169663547,15.50996136,3704.7,3704.2,0.001]
[1753169663748,0.1344,3704.3,3704.2,0.4389]
[1753169664272,2.83396536,3704.3,3704.2,0.4389]
[1753169664969,0.1344,3704.3,3704.2,0.4389]
[1753169665365,0.1344,3704.3,3704.2,0.001]
[1753169665668,2.83339825,3705.1,3704.3,2.69949523]
[1753169665870,3.0,3705.0,3704.3,2.69949523]
[1753169666070,3.0,3705.0,3704.5,0.1344]
[1753169666272,2.69913188,3704.9,3704.5,0.1344]
[1753169666430,2.72606443,3705.0,3704.6,0.4379]
[1753169666625,2.6991283,3704.9,3704.7,0.4379]
[1753169666855,0.02698635,3705.0,3704.7,0.4379]
[1753169667242,3.33305752,3705.1,3704.8,0.4379]
[1753169667732,0.33305752,3705.1,3704.8,0.4379]
[1753169668235,0.33305752,3705.1,3704.9,0.4379]
[1753169668441,0.19865752,3705.1,3704.9,0.4379]
[1753169668641,2.69892001,3705.2,3704.8,0.9676]
[1753169668642,2.69884836,3705.3,3705.0,0.4379]
[1753169668842,0.1344,3705.4,3705.1,0.4379]
[1753169669050,0.1344,3705.4,3704.8,0.9676]
[1753169669361,0.1344,3705.4,3704.9,0.4379]
[1753169669362,3.0,3705.3,3704.9,0.4379]
[1753169669537,3.0,3705.3,3704.8,0.9676]
[1753169669737,3.0,3705.3,3705.0,0.4379]
[1753169669960,3.0,3705.3,3704.8,5.1336]
[1753169670172,0.1344,3705.4,3705.1,0.4379]
[1753169670376,3.1344,3705.4,3705.1,0.4379]
[1753169670544,6.04032169,3705.4,3705.2,0.4379]
[1753169670926,0.002,3705.6,3705.4,0.7721]
[1753169671473,0.002,3705.6,3705.5,0.68858905]
[1753169673244,0.20729148,3705.6,3705.5,0.68858905]
[1753169673955,0.002,3705.6,3705.5,0.68858905]
[1753169674143,0.002,3705.6,3705.5,0.82298905]
[1753169675830,0.002,3705.6,3705.5,1.66887407]
[1753169677081,0.002,3705.6,3705.5,1.66848435]
[1753169677267,0.002,3705.6,3705.5,0.38469933]
[1753169677469,2.7006183,3705.6,3705.5,0.25029933]
[1753169678163,0.1364,3705.6,3705.5,0.25029933]
[1753169678366,2.8350183,3705.6,3705.5,0.25029933]
[1753169678574,0.1364,3705.6,3705.5,0.68819933]
[1753169678930,0.002,3705.6,3705.5,3.94862039]
[1753169679135,0.002,3705.6,3705.5,3.9756073]
[1753169679433,0.002,3705.6,3705.5,4.76072039]
[1753169680250,0.002,3705.6,3705.5,4.7877073]
[1753169680452,0.002,3706.0,3705.9,3.52809984]
[1753169680680,0.002,3706.0,3705.9,8.59704209]
[1753169680902,0.002,3706.0,3705.9,9.0079581]
[1753169682049,0.002,3706.0,3705.9,6.30955826]
[1753169682933,0.002,3706.0,3705.9,9.0079581]
[1753169683935,0.002,3706.0,3705.9,5.24899933]
[1753169684478,0.002,3706.0,3705.9,5.68689933]
[1753169685248,0.002,3706.0,3705.9,1.51720297]
[1753169685450,2.70032703,3706.0,3705.9,0.24960297]
[1753169685854,2.70032703,3706.0,3705.9,4.41465645]
[1753169686053,3.14002703,3706.0,3705.9,4.41465645]
[1753169686879,2.70032703,3706.0,3705.9,4.41465645]
[1753169688885,2.70032703,3706.0,3705.9,4.41472754]
[1753169689095,0.002,3706.0,3705.9,4.41472754]
[1753169689307,0.002,3706.0,3705.9,5.69452754]
[1753169690105,0.002,3706.0,3705.9,8.39292738]
[1753169690307,0.002,3706.0,3705.9,8.97582013]
[1753169691489,0.002,3706.0,3705.9,6.27742029]
[1753169691689,0.002,3706.0,3705.9,5.69452754]
[1753169692010,0.002,3706.0,3705.9,4.41474835]
[1753169692374,2.70032703,3706.0,3705.9,0.24974835]
[1753169692573,3.14182703,3706.0,3705.9,4.41374835]
[1753169692803,2.72731338,3706.0,3705.9,4.41374835]
[1753169693004,2.83472703,3706.0,3705.9,4.41374835]
[1753169694088,2.86171338,3706.0,3705.9,4.41374835]
[1753169694814,2.86171338,3706.0,3705.9,0.24974835]
[1753169694815,6.30321338,3706.0,3705.9,0.24974835]
[1753169695000,2.69896637,3705.2,3704.8,0.1344]
[1753169695206,2.69896637,3705.2,3704.9,4.41620609]
[1753169695516,2.69896637,3705.2,3705.0,0.25020609]
[1753169695813,2.69884495,3705.3,3705.1,0.25020609]
[1753169696018,2.69884855,3705.3,3705.2,4.41634357]
[1753169696620,0.1344,3705.4,3705.2,4.86524357]
[1753169696818,0.1344,3705.7,3705.3,0.69924357]
[1753169697110,2.69869113,3705.5,3705.4,0.25034357]
[1753169697913,2.69869113,3705.5,3705.4,0.25050885]
[1753169698914,2.69866694,3705.6,3705.4,0.25050885]
[1753169699215,2.69866694,3705.6,3705.2,4.166]
[1753169699216,0.1344,3705.7,3705.5,0.25050885]
[1753169699415,3.1344,3705.7,3705.6,0.25050885]
[1753169699616,3.0,3705.7,3705.6,4.41350885]
[1753169699823,2.70034024,3706.0,3705.6,4.86240885]
[1753169699983,2.70034024,3706.0,3705.7,0.25050885]
[1753169700183,2.70034024,3706.0,3705.8,0.25050885]
[1753169700385,2.70034024,3706.0,3705.7,0.4489]
[1753169700386,3.002,3706.0,3705.9,0.25050885]
[1753169700643,0.002,3706.0,3705.9,4.41350885]
[1753169701830,0.002,3706.0,3705.9,5.67380885]
[1753169701986,0.002,3706.0,3705.9,6.67511774]
[1753169702210,0.002,3706.0,3705.9,6.64813375]
[1753169702587,0.002,3706.2,3705.9,6.64813375]
[1753169702785,2.70019679,3706.2,3706.0,0.69940885]
[1753169703014,0.002,3706.2,3706.1,4.41350885]
[1753169703217,2.70018142,3706.2,3706.1,4.41350885]
[1753169703415,3.96208142,3706.2,3706.1,4.41350885]
[1753169704035,3.52058142,3706.2,3706.1,0.25050885]
[1753169704240,2.70018142,3706.2,3706.1,4.41350885]
[1753169712488,2.70018142,3706.2,3706.1,0.25050885]
[1753169715210,7.94244075,3706.2,3706.1,0.25050885]
[1753169719723,5.24425933,3706.2,3706.1,0.25050885]
[1753169720245,7.94244075,3706.2,3706.1,0.25050885]
[1753169721548,0.002,3706.2,3706.1,1.48050885]
[1753169721845,0.002,3706.2,3706.1,2.32963203]
[1753169722441,0.002,3706.4,3706.1,2.32963203]
[1753169722650,0.002,3706.4,3706.2,0.70130885]
[1753169722847,0.002,3706.4,3706.3,0.25050885]
[1753169723051,0.002,3706.4,3706.3,0.70130885]
[1753169725749,0.002,3706.4,3706.3,0.25050885]
[1753169725928,0.002,3706.4,3706.3,0.25067428]
[1753169726648,0.002,3706.4,3706.3,0.70147428]
[1753169728955,0.002,3706.4,3706.3,0.70160093]
[1753169731672,0.002,3706.4,3706.3,4.85260093]
[1753169732535,0.20019527,3706.5,3706.3,4.85260093]
[1753169732737,7.94220398,3706.6,3706.4,0.25080093]
[1753169732945,11.40970398,3706.6,3706.5,0.25080093]
[1753169733246,11.54410398,3706.6,3706.5,0.25080093]
[1753169734724,11.7508203,3706.6,3706.5,0.25080093]
[1753169735448,12.5574203,3706.6,3706.5,0.25080093]
[1753169736361,12.0899203,3706.6,3706.5,0.25080093]
[1753169736665,0.002,3706.6,3706.5,1.52760093]
[1753169736828,0.002,3706.6,3706.5,4.82030368]
[1753169737222,0.002,3706.6,3706.5,2.12234065]
[1753169737431,0.002,3706.6,3706.5,4.79332405]
[1753169737624,0.002,3706.6,3706.5,4.82030368]
[1753169739938,0.002,3706.6,3706.5,2.12234065]
[1753169740139,5.24425933,3706.6,3706.5,1.07680093]
[1753169740340,7.94214957,3706.6,3706.5,4.40080093]
[1753169740966,5.24425933,3706.6,3706.5,4.85160093]
[1753169741759,0.002,3707.0,3706.5,4.85160093]
[1753169741760,0.002,3707.7,3706.6,24.897015]
[1753169741928,0.25221553,3709.5,3708.4,4.04378073]
[1753169742128,0.25221553,3709.5,3708.2,2.6966776]
[1753169742129,0.2067957,3709.8,3709.7,2.69563576]
[1753169742427,0.2067957,3709.8,3709.7,4.94760093]
[1753169742665,0.2067957,3709.8,3709.7,7.67019304]
[1753169742936,0.8047,3710.5,3709.7,4.94760093]
[1753169743233,0.02698635,3710.6,3710.0,2.6954166]
[1753169743434,3.02698635,3710.6,3710.1,4.49680093]
[1753169743659,3.02698635,3710.6,3710.2,0.25080093]
[1753169743867,3.02698635,3710.6,3710.3,0.25080093]
[1753169744065,2.72196934,3710.6,3710.4,0.25080093]
[1753169744363,2.72196934,3710.6,3710.4,4.245]
[1753169744364,2.69505457,3710.5,3710.4,4.245]
[1753169744567,2.69505457,3710.5,3710.4,4.4940778]
[1753169747342,2.69505457,3710.5,3710.4,4.245]
[1753169748750,2.69505457,3710.5,3710.4,4.4935359]
[1753169749174,2.69505457,3710.5,3710.4,4.245]
[1753169749380,2.69505457,3710.5,3710.4,4.49349063]
[1753169750282,0.16138635,3710.6,3710.4,4.49349063]
[1753169750498,3.0,3711.3,3710.5,0.72279063]
[1753169750797,2.69496052,3710.7,3710.6,0.24849063]
[1753169751156,2.69496052,3710.7,3710.6,4.48049063]
[1753169751347,2.72175511,3710.9,3710.6,4.48049063]
[1753169751348,2.69476876,3710.9,3710.6,4.48049063]
[1753169751549,2.69476876,3710.9,3710.7,0.24849063]
[1753169751757,0.1344,3711.0,3710.8,0.72279063]
[1753169751988,2.82914962,3711.0,3710.9,4.48049063]
[1753169752151,2.82914962,3711.0,3710.9,4.95479063]
[1753169753195,2.82914962,3711.0,3710.9,4.48049063]
[1753169753580,2.82914962,3711.0,3710.9,0.24849063]
[1753169753788,2.82914962,3711.0,3710.9,4.47649063]
[1753169754474,2.82914962,3711.0,3710.9,4.95079063]
[1753169755066,2.82914962,3711.0,3710.9,4.47649063]
[1753169755258,5.82914962,3711.0,3710.9,0.24849063]
[1753169755465,6.27914962,3711.0,3710.9,4.47349063]
[1753169755690,6.27914962,3711.0,3710.9,0.24849063]
[1753169755898,2.69519984,3710.3,3710.2,0.01758533]
[1753169756196,6.13347872,3710.3,3710.2,0.01758533]
[1753169756400,6.16046507,3710.3,3710.2,4.24358533]
[1753169756577,6.61046507,3710.3,3710.2,4.24358533]
[1753169756779,6.61046507,3710.3,3710.2,0.01758533]
[1753169756969,6.61046507,3710.3,3710.2,4.225]
[1753169757575,21.11046507,3710.3,3710.2,4.225]
[1753169757793,21.08347872,3710.3,3710.2,4.225]
[1753169758505,3.0,3709.8,3709.4,0.4743]
[1753169758707,2.69572105,3709.6,3709.5,4.223]
[1753169759010,2.69572105,3709.6,3709.5,4.6973]
[1753169759587,2.69565702,3709.7,3709.5,4.6973]
[1753169760100,2.69592645,3709.3,3709.2,0.9417]
[1753169760317,2.69592645,3709.3,3709.2,5.1627]
[1753169760603,0.16138635,3709.8,3709.2,5.637]
[1753169760604,2.69589354,3709.4,3709.2,5.637]
[1753169760962,2.69592645,3709.3,3709.2,1.416]
[1753169761162,2.69592645,3709.3,3709.2,5.636]
[1753169761608,2.69587284,3709.4,3709.2,1.416]
[1753169761782,2.69563576,3709.7,3709.3,4.6933]
[1753169761970,3.0,3710.2,3709.4,0.4743]
[1753169762173,2.69553667,3709.9,3709.5,4.3534]
[1753169762413,0.1344,3710.1,3709.6,0.4743]
[1753169762572,2.69563576,3709.7,3709.6,0.4743]
[1753169764734,0.16138635,3710.1,3709.2,0.8073]
[1753169764735,2.69592645,3709.3,3709.2,0.8073]
[1753169765010,2.69592645,3709.3,3709.2,5.1567]
[1753169765172,2.69563576,3709.7,3709.2,5.1567]
[1753169765369,2.69586658,3709.4,3709.2,5.1567]
[1753169766084,2.37247031,3709.4,3709.2,5.1567]
[1753169766414,2.69579388,3709.5,3709.2,5.631]
[1753169766708,2.69585913,3709.4,3709.2,5.631]
[1753169767315,2.69592645,3709.3,3709.2,0.6087]
[1753169767778,2.69592645,3709.3,3709.2,4.3464]
[1753169767977,0.16138635,3709.8,3709.2,4.59429415]
[1753169767978,2.69587561,3709.4,3709.2,4.59429415]
[1753169768286,2.69568937,3709.7,3709.3,0.72219415]
[1753169768487,0.7815,3710.8,3709.4,1.54759415]
[1753169768695,2.69536081,3710.1,3709.5,4.93219415]
[1753169768994,0.02698635,3710.5,3709.6,0.24789415]
[1753169769199,2.69540056,3710.1,3709.7,0.24789415]
[1753169769397,2.69546244,3710.0,3709.8,4.46189415]
[1753169769590,3.0,3710.5,3709.9,4.93619415]
[1753169769785,2.69536359,3710.1,3710.0,0.24789415]
[1753169771800,3.50384994,3710.1,3710.0,4.46089415]
[1753169772000,6.95384994,3710.1,3710.0,0.24789415]
[1753169772214,3.0,3710.1,3710.0,4.45889415]
[1753169772425,5.69534513,3710.1,3710.0,4.45889415]
[1753169775915,5.69534513,3710.1,3710.0,0.24789415]
[1753169776110,6.14534513,3710.1,3710.0,0.24789415]
[1753169776341,6.96314513,3710.1,3710.0,4.45689415]
[1753169776530,21.46314513,3710.1,3710.0,0.24789415]
[1753169776729,21.46314513,3710.1,3710.0,4.45689415]
[1753169777449,21.46314513,3710.1,3710.0,4.45803445]
[1753169777948,21.46314513,3710.1,3710.0,0.24903445]
[1753169779761,6.96314513,3710.1,3710.0,0.24903445]
[1753169780218,21.46314513,3710.1,3710.0,0.24903445]
[1753169781120,21.01314513,3710.1,3710.0,0.24903445]
[1753169781322,5.69534513,3710.1,3710.0,0.24903445]
[1753169782859,2.69534513,3710.1,3710.0,0.24903445]
[1753169783276,0.02698635,3710.2,3710.0,1.01613445]
[1753169783419,0.002,3710.3,3710.1,4.45203445]
[1753169783619,0.002,3710.3,3710.2,0.24903445]
[1753169783853,0.002,3710.3,3710.2,0.69723445]
[1753169785641,2.69719984,3710.3,3710.2,0.24903445]
[1753169786151,2.69719984,3710.3,3709.3,0.4482]
[1753169786152,4.2132,3710.3,3709.3,0.4482]
[1753169786349,0.1344,3710.1,3709.5,0.1344]
[1753169786527,2.69541778,3710.0,3709.6,0.24949182]
[1753169786727,2.69541778,3710.0,3709.5,0.1344]
[1753169786728,2.6955631,3709.8,3709.7,4.44951198]
[1753169787139,2.72254945,3709.8,3709.7,4.44951198]
[1753169787542,2.85689618,3709.9,3709.7,4.44951198]
[1753169787736,0.1344,3709.9,3709.8,0.24951198]
[1753169788324,0.1344,3710.2,3709.8,0.69771198]